{"text_format":"3","workbook":"xlsx","n_sheets":2,"sheets":["清单","点位汇总"],"read":"whole","date_system":"1900"}

{"sheet":"清单","index":0,"n_rows":18,"n_cols":7,"rows_kept":18,"merged":[[0,0,0,6],[17,0,17,2]]}
["郁南县人民医院医疗质量安全隐患项目"]
["序号","设备名称","参数详述","数量","单位","单价（1）","合计"]
[1,"操作终端","CPU：i5 10400；\n内存：8GB；\n硬盘：128GB SATA SSD +1TB SATA HDD；\n显示器：21.5英寸；\n显卡：2G独显或以上；\n基于安防客户端（4200客户端），解码性能：支持1080P像素14路，支持400万像素10路技术路线",1,"台"]
[2,"监视器","75寸，4K屏",1,"台"]
[3,"硬盘录像机","具有2个HDMI接口、2个VGA接口、2个RJ45 千兆网络接口；2个USB2.0接口、2个USB3.0接口、1个RS232接口、1个RS485接口（可接入RS485键盘）、1个eSata接口；具有1路音频输入接口、2路音频输出接口、16路报警输入接口、9路报警输出接口（其中第9路支持受控直流12V输出）、具有1路直流12V输出接口（12V 1A）、可内置12块SATA接口硬盘\n可接入 1T、2T、3T、4T、6T、8T、10T、12TB、14TB、16TB、18TB、20TB 容量的 SATA接口硬盘；可接入 AI 硬盘、加密硬盘； 支持不同品牌、不同转速的监控级和企业级硬盘混合接入。支持SATA硬盘，SAS硬盘和SSD硬盘混合接入\n支持存储数据保护功能，当前设备硬盘无法直接在第三方服务器或PC机上读取硬盘数据\n当系统检查到硬盘异常或无法获取硬盘信息时，硬盘被定义为错误盘，在用户界面硬盘位标识为红色\n支持最大接入带宽384Mbps，最大存储带宽384Mbps，最大转发带宽384Mbps\n可同时解码输出32路2MP、H.265编码、25fps、1920×1080格式的视频图像\n支持4通道输出，包括HDMI1、HDMI2、VGA1、VGA2，各输出口均支持显示系统主菜单，且每路均可分别进行预览、回放、配置等操作；HDMI1和HDMI2支持同时4K（4096×2160）异源输出，单个HDMI口支持8K输出\n可设置输出分辨率为1024×768/60Hz、1280×720/60Hz、1280×1024/60Hz、1600×1200/60Hz、1920×1080/60Hz、2560×1440/60Hz、4K(3840×2160)/30Hz、4K(3840×2160)/60Hz、4K(4096×2160)/30Hz、8K（7680×4320)/30Hz选项。可自适应显示器的最佳分辨率进行图像显示（以公安部检测报告为准）\n支持报警事件、异常事件计数提醒功能，以图标形式在监控界面上提醒用户，异常事件包括硬盘满、硬盘错误、网络断开、IP 冲突、非法访问、视频信号丢失、录像/抓图异常、IP 通道冲突、热备异常、子码流分辨率/码率超限、配件板异常、硬盘高温异常、硬盘低温异常、硬盘坏块异常、硬盘撞击异常、硬盘严重故障异常、无码流异常等\n可接入带有温度报警、烟雾报警、障碍物遮挡报警、移动报警、防拆报警、紧急报警的智慧消防摄像机进行报警联动\n支持接入具有专家模式的移动侦测的摄像机，移动侦测报警能够区分是人、车还是其它目标产生，可录像和记录报警信息\n接入警戒摄像机，支持对 IPC 的声音和闪光参数进行配置， 支持通过移动侦测、区域入侵、越界侦测、进入区域和离开区域事件联动一个或多个 IPC 的声光报警，可以对声光联动一键撤防\n支持音频设备与视频设备独立管理，支持网络拾音器的接入、校时\n支持音视频动态调整组合分配功能，可将任一路音频与任一路视频组合成复合流编码\n可接入128路高空抛物行为检测摄像机，支持在预览界面实时展示高空抛物事件轨迹并弹窗回放轨迹信息\n可通过设备本地GUI画面、电脑客户端和手机客户端展示高空抛物事件，并支持回放高空抛物轨迹信息，支持联动录像、抓图、蜂鸣报警、预置点、邮件、本地报警输出、IPC报警输出以及日志记录",1,"台"]
[4,"硬盘","8TB容量，3.5英寸 SATA 3.0接口，7200RPM\n单硬盘支持多达32个摄像头的高清流\n高达256MB缓冲区，流畅存储视频有效防止丢帧\n24×7全天候高效稳定运行\n年度工作负载等级为300TB/年\nMTBF可达1,000,000小时\n高级格式（AF）512e扇区技术，保障硬盘扇区4K对齐\n支持3年有限质保服务",12,"块"]
[5,"半球型网络摄像机","主码流可达到2688x1520@25fps\n最低照度彩色0.005lx，黑白0.0005lx。\n内置GPU芯片，麦克风，扬声器。\n支持白光补光、红外补光，在开启白光灯进行补光时，可输出彩色视频图像。\n同一静止场景相同图像质量下，设备在H.264、H.265编码方式时，开启智能编码功能和不开启智能编码相比，码率节约80%。\n支持智能报警\r防干扰功能，智能分析行为类型为区域入侵、越界侦测、进入区域、离开区域时，报警检测目标设置为人体和/或车辆时，光线明暗变化，篮球滚动，狗行走，树摇晃，不触发报警。\n支持声音报警功能，报警声音类型不低于12种，并支持导入自定义语音，报警音量及重复次数可设置。\n可对出现在监控画面中的两眼瞳距不小于26像素的人脸进行检测，并叠加目标提示框。\n可同时对经过设定检测区域内的不低于10个行人进行人脸检测、跟踪、评分和抓拍，可筛选和抓拍最佳人脸图片存储及上报中心，抓拍图片数量、大小可设，支持上传全景照。\n支持像素显示功能，可通过IE浏览器显示预览画面中鼠标所选区域水平及垂直方向的像素数。\n支持快捷配置功能，可在预览画面页开启/关闭“快捷配置”页面，支持配置常用显示图像参数、OSD配置、音视频参数、智能资源分配等，并支持恢复默认操作。",65,"台"]
[6,"24口全千兆POE交换机","提供24个千兆PoE电口，2个千兆光口\n交换容量：52 Gbps\n包转发率：38.69 Mpps\n支持IEEE 802.3at/af\n端口最大供电功率：30 W\n整机最大供电功率：225W\n支持IEEE 802.3、IEEE 802.3u、IEEE 802.3x\n支持6 KV防浪涌（PoE口）\n支持PoE输出功率管理\n浪涌防护：6 KV",5,"台"]
[7,"汇聚交换机","提供24个千兆电口，4个千兆光口\n交换容量：336Gbps/3.36Tbps\n包转发率：51/126 Mpps\n电源类型：内置AC电源\n输入电压：110V AC-240V AC；50/60Hz",1,"台"]
[8,"千兆光纤收发器","链接为套装,配对使用即可,无需设置,即插即用.\nTL-FC311A-3,TL-FC311B-3分别提供1个千兆SC光纤接口，1个千兆RJ45接口\n基于波分复用技术，单模单纤传输，传输距离3公里\n工作波长：\nTL-FC311A-3:1310nm（接收）、1550nm（发送）\nTL-FC311B-3:1310nm（发送）、1550nm（接收）\n光纤传输，损耗小、距离远\nTL-FC311A-3,TL-FC311B-3是一款千兆单模单纤光纤收发器，分别提供一个1000Mbps以太网接口和一个1.25Gbps SC光纤接口，可实现电口信号和光口信号转换，并通过光纤进行远距离数据和视频信号传输。适用于安防监控、无线组网、以及光纤接入等应用场景。\n单模光纤,传输距离长达3km\n单模光纤模间色散小、抗干扰、损耗少，传输距离长达3千米。",6,"对"]
[9,"18U落地机柜","尺寸:600X600X988mm\n颜色：黑色\n容量：18U\n配置：8位10APDU插排一个\n固定板1块\n风扇部件1组\n4只两寸重型脚轮\nM6方螺母钉20套\n内六角扳手一只",1,"套"]
[10,"6U壁挂机柜","尺寸:600mmx450mmx368mm\n容量: 6U\n厚度:方孔条1.5mm 侧门0.8mm其余1.2mm\n配置:M6方螺母钉10套；内六角扳手一只；钥匙2把",5,"套"]
[11,"光纤跳线","单模单纤SC/SC跳线，3米",1,"批"]
[12,"六类网线","六类非屏蔽网线",13,"箱"]
[13,"线管","θ32",1,"批"]
[14,"辅材","插排、直通、弯头、标签、胶粒、螺丝",1,"批"]
[15,"实施费","线路实施、设备安装调试",1,"项"]
["合计："]

{"sheet":"点位汇总","index":1,"n_rows":21,"n_cols":14,"rows_kept":21,"merged":[[0,0,0,10],[2,1,5,1],[6,1,12,1],[13,1,16,1],[17,1,18,1],[20,0,20,2]]}
["郁南县人民医院医疗质量安全隐患项目"]
["序号","楼别","楼层","半球型摄像机","24口POE交换机","汇聚交换机","光纤收发器","硬盘录像机","操作终端","6U机柜","18U机柜",null,"名称","数量"]
[1,"门诊楼","五层",4,{"$nulls":8},{"$f":"D2","v":"半球型摄像机"},{"$f":"D21","v":65}]
[2,null,"六层",4,1,null,1,null,null,1,null,null,{"$f":"E2","v":"24口POE交换机"},{"$f":"E21","v":5}]
[3,null,"七层",3,{"$nulls":8},{"$f":"F2","v":"汇聚交换机"},{"$f":"F21","v":1}]
[4,null,"八层",4,{"$nulls":8},{"$f":"G2","v":"光纤收发器"},{"$f":"G21","v":6}]
[5,"住院楼","二层",4,{"$nulls":8},{"$f":"H2","v":"硬盘录像机"},{"$f":"H21","v":1}]
[6,null,"三层",4,1,null,1,null,null,1,null,null,{"$f":"I2","v":"操作终端"},{"$f":"I21","v":1}]
[7,null,"四层",4,{"$nulls":8},{"$f":"J2","v":"6U机柜"},{"$f":"J21","v":5}]
[8,null,"五层",4,{"$nulls":8},{"$f":"K2","v":"18U机柜"},{"$f":"K21","v":1}]
[9,null,"六层",4]
[10,null,"七层",3,1,null,1,null,null,1]
[11,null,"八层",3]
[12,"综合楼","三层",3]
[13,null,"四层",3,1,null,1,null,null,1]
[14,null,"五层",3]
[15,null,"六层",3]
[16,"感染楼","二层",6,1,null,1,null,null,1]
[17,null,"三层",6]
[18,"医共体信息中心","一层",null,null,1,1,1,1,null,1]
["合计：",null,null,{"$f":"SUM(D3:D20)","v":65},5,1,6,1,1,5,1]